[Event "Late-Titled-Tuesday-Blitz-April-23-2024"]
[Site "Chess.com"]
[Date "2024.04.23"]
[Round "2"]
[White "OPQRC"]
[Black "Nimrod_Veinberg"]
[Result "0-1"]
[WhiteElo "2573"]
[BlackElo "2820"]
[TimeControl "180+1"]
[EndTime "14:20:23 PDT"]
[Termination "Nimrod_Veinberg won by resignation"]

1. e4 {[%clk 0:03:00.6]} 1... c5 {[%clk 0:02:59.3]} 2. Nf3 {[%clk 0:03:00.4]}
2... e6 {[%clk 0:02:59.8]} 3. b3 {[%clk 0:02:58.2]} 3... a6 {[%clk 0:02:58.6]}
4. Bb2 {[%clk 0:02:57.5]} 4... Nc6 {[%clk 0:02:59.1]} 5. d3 {[%clk 0:02:57.2]}
5... Nf6 {[%clk 0:02:54.5]} 6. g3 {[%clk 0:02:56.7]} 6... d5 {[%clk 0:02:54.3]}
7. Nbd2 {[%clk 0:02:56.1]} 7... b5 {[%clk 0:02:49.9]} 8. Bg2 {[%clk 0:02:56]}
8... Bb7 {[%clk 0:02:50.1]} 9. O-O {[%clk 0:02:55.5]} 9... Be7 {[%clk
0:02:49.3]} 10. e5 {[%clk 0:02:54.3]} 10... Nd7 {[%clk 0:02:48.7]} 11. Re1
{[%clk 0:02:54.6]} 11... Qb6 {[%clk 0:02:42.1]} 12. h4 {[%clk 0:02:51.7]} 12...
h6 {[%clk 0:02:40.7]} 13. a3 {[%clk 0:02:27.4]} 13... O-O-O {[%clk 0:02:28.6]}
14. Qe2 {[%clk 0:02:23.2]} 14... Kb8 {[%clk 0:02:20.8]} 15. Rab1 {[%clk
0:02:15.6]} 15... g5 {[%clk 0:02:04]} 16. h5 {[%clk 0:02:09.5]} 16... Rhf8
{[%clk 0:01:40.9]} 17. c4 {[%clk 0:02:04.2]} 17... d4 {[%clk 0:01:24.3]} 18.
cxb5 {[%clk 0:02:00.4]} 18... axb5 {[%clk 0:01:23.7]} 19. a4 {[%clk 0:01:57.2]}
19... Nb4 {[%clk 0:01:23.4]} 20. axb5 {[%clk 0:01:53.7]} 20... Qxb5 {[%clk
0:01:23.2]} 21. Nc4 {[%clk 0:01:53.3]} 21... Nb6 {[%clk 0:01:20.4]} 22. Ba3
{[%clk 0:01:40.3]} 22... N6d5 {[%clk 0:01:19.7]} 23. Bxb4 {[%clk 0:01:38.3]}
23... Qxb4 {[%clk 0:01:09.8]} 24. Qd2 {[%clk 0:01:33.8]} 24... Qxd2 {[%clk
0:01:08.4]} 25. Nfxd2 {[%clk 0:01:33.8]} 25... Nb4 {[%clk 0:01:09]} 26. Bf1
{[%clk 0:01:30.9]} 26... Kc7 {[%clk 0:01:04.2]} 27. Ne4 {[%clk 0:01:24.1]} 27...
Ra8 {[%clk 0:00:59.8]} 28. Ncd6 {[%clk 0:01:21.8]} 28... Bxe4 {[%clk 0:00:57.1]}
29. Nxe4 {[%clk 0:01:19.1]} 29... Ra2 {[%clk 0:00:56.1]} 30. Rbc1 {[%clk
0:01:16]} 30... Kb6 {[%clk 0:00:55.7]} 31. Rc4 {[%clk 0:01:05.3]} 31... Rfa8
{[%clk 0:00:52.9]} 32. Rec1 {[%clk 0:01:01.7]} 32... R8a5 {[%clk 0:00:51.8]} 33.
Nd6 {[%clk 0:00:51]} 33... Ra8 {[%clk 0:00:17.6]} 34. Rxc5 {[%clk 0:00:41.8]}
34... Bxd6 {[%clk 0:00:17.5]} 35. exd6 {[%clk 0:00:39]} 35... Rd8 {[%clk
0:00:16.2]} 36. R5c4 {[%clk 0:00:33.8]} 36... Nd5 {[%clk 0:00:16.3]} 37. Rxd4
{[%clk 0:00:27]} 37... Rxd6 {[%clk 0:00:16.6]} 38. Bg2 {[%clk 0:00:24.8]} 38...
Rb2 {[%clk 0:00:17.1]} 39. Rc8 {[%clk 0:00:18.4]} 39... Rc6 {[%clk 0:00:13.5]}
40. Rxc6+ {[%clk 0:00:12.4]} 40... Kxc6 {[%clk 0:00:14.4]} 41. b4 {[%clk
0:00:11]} 41... Kd6 {[%clk 0:00:09.5]} 42. Rc4 {[%clk 0:00:10]} 42... Nxb4
{[%clk 0:00:08]} 43. Rc8 {[%clk 0:00:09.2]} 43... Ke7 {[%clk 0:00:05.7]} 44. Rh8
{[%clk 0:00:09.4]} 44... Nxd3 {[%clk 0:00:05.1]} 45. Rxh6 {[%clk 0:00:08.8]}
45... Nxf2 {[%clk 0:00:05.7]} 46. Rh8 {[%clk 0:00:05.3]} 46... Ng4 {[%clk
0:00:05.8]} 47. h6 {[%clk 0:00:05.3]} 47... Rb1+ {[%clk 0:00:05]} 48. Bf1 {[%clk
0:00:05.6]} 48... Kf6 {[%clk 0:00:04.3]} 49. h7 {[%clk 0:00:03.5]} 49... Kg7
{[%clk 0:00:04.5]} 50. Rf8 {[%clk 0:00:03.3]} 50... Kxh7 {[%clk 0:00:04.3]} 51.
Rxf7+ {[%clk 0:00:03.6]} 51... Kg6 {[%clk 0:00:05]} 52. Rf3 {[%clk 0:00:03]}
52... Ne5 {[%clk 0:00:05.5]} 53. Re3 {[%clk 0:00:02.7]} 53... Kf6 {[%clk
0:00:06.1]} 54. Kg2 {[%clk 0:00:02.6]} 54... Rb2+ {[%clk 0:00:06.3]} 55. Be2
{[%clk 0:00:02.9]} 55... Rb4 {[%clk 0:00:06.5]} 56. Bf3 {[%clk 0:00:02.4]} 56...
Nxf3 {[%clk 0:00:04.5]} 57. Rxf3+ {[%clk 0:00:02.5]} 57... Kg6 {[%clk
0:00:05.1]} 58. Re3 {[%clk 0:00:02.6]} 58... Kf5 {[%clk 0:00:05.7]} 59. Rf3+
{[%clk 0:00:02.5]} 59... Ke5 {[%clk 0:00:06.4]} 60. Re3+ {[%clk 0:00:02.7]}
60... Re4 {[%clk 0:00:07.1]} 61. Ra3 {[%clk 0:00:02.7]} 61... Re2+ {[%clk
0:00:07.7]} 62. Kh3 {[%clk 0:00:02.9]} 62... Rb2 {[%clk 0:00:08.6]} 63. Kg4
{[%clk 0:00:03]} 63... Kf6 {[%clk 0:00:07.4]} 64. Rf3+ {[%clk 0:00:03.6]} 64...
Kg6 {[%clk 0:00:07.7]} 65. Re3 {[%clk 0:00:04.2]} 65... Rb4+ {[%clk 0:00:08.3]}
66. Kh3 {[%clk 0:00:04.6]} 66... Kf5 {[%clk 0:00:07]} 67. Rf3+ {[%clk
0:00:04.8]} 67... Ke4 {[%clk 0:00:06.8]} 68. Rf8 {[%clk 0:00:04.9]} 68... Kd5
{[%clk 0:00:05.8]} 69. Rg8 {[%clk 0:00:04.1]} 69... e5 {[%clk 0:00:05.7]} 70.
Rxg5 {[%clk 0:00:04.2]} 70... Kd4 {[%clk 0:00:06.6]} 71. Rg8 {[%clk 0:00:04.2]}
71... e4 {[%clk 0:00:07.1]} 72. g4 {[%clk 0:00:04.3]} 72... e3 {[%clk
0:00:05.8]} 73. Re8 {[%clk 0:00:04.3]} 73... Kd3 {[%clk 0:00:05.7]} 74. g5
{[%clk 0:00:04.7]} 74... Re4 {[%clk 0:00:05.5]} 75. Rd8+ {[%clk 0:00:04]} 75...
Kc2 {[%clk 0:00:05.5]} 76. Rc8+ {[%clk 0:00:04.1]} 76... Kd2 {[%clk 0:00:05.3]}
77. Ra8 {[%clk 0:00:04.2]} 77... e2 {[%clk 0:00:05.4]} 78. Ra2+ {[%clk
0:00:04.1]} 78... Kd3 {[%clk 0:00:05.8]} 79. Ra1 {[%clk 0:00:02.9]} 79... e1=Q
{[%clk 0:00:05.9]} 80. Rxe1 {[%clk 0:00:03.4]} 80... Rxe1 {[%clk 0:00:06.8]} 81.
Kg4 {[%clk 0:00:04.3]} 81... Ke4 {[%clk 0:00:06.6]} 82. g6 {[%clk 0:00:04.8]}
82... Rg1+ {[%clk 0:00:06.6]} 83. Kh5 {[%clk 0:00:04.9]} 83... Kf5 {[%clk
0:00:07.3]} 0-1

[Event "Late-Titled-Tuesday-Blitz-April-23-2024"]
[Site "Chess.com"]
[Date "2024.04.23"]
[Round "3"]
[White "SidArun"]
[Black "maurovargas01"]
[Result "1-0"]
[WhiteElo "2353"]
[BlackElo "1910"]
[TimeControl "180+1"]
[EndTime "14:24:36 PDT"]
[Termination "SidArun won by resignation"]

1. d4 {[%clk 0:03:00.9]} 1... d5 {[%clk 0:02:59.9]} 2. Nc3 {[%clk 0:03:00.8]}
2... Nf6 {[%clk 0:03:00]} 3. Bf4 {[%clk 0:03:00.9]} 3... Bf5 {[%clk 0:02:55.7]}
4. e3 {[%clk 0:03:00.9]} 4... Bg6 {[%clk 0:02:51.4]} 5. g4 {[%clk 0:03:00]} 5...
e6 {[%clk 0:02:35.9]} 6. h4 {[%clk 0:02:59.5]} 6... h5 {[%clk 0:02:31.2]} 7. g5
{[%clk 0:02:56.4]} 7... Nc6 {[%clk 0:02:21.2]} 8. gxf6 {[%clk 0:02:54.1]} 8...
Qxf6 {[%clk 0:02:19.7]} 9. Bd3 {[%clk 0:02:51.7]} 9... Qd8 {[%clk 0:02:19]} 10.
Bxg6 {[%clk 0:02:49.3]} 10... fxg6 {[%clk 0:02:19]} 11. Qd3 {[%clk 0:02:44.8]}
11... Kf7 {[%clk 0:02:17.7]} 12. Nf3 {[%clk 0:02:44.1]} 12... Be7 {[%clk
0:02:14.7]} 13. Bg5 {[%clk 0:02:40.8]} 13... Nb4 {[%clk 0:02:13.1]} 14. Qe2
{[%clk 0:02:36.7]} 14... Rf8 {[%clk 0:02:09.6]} 15. Ne5+ {[%clk 0:02:33.7]}
15... Kg8 {[%clk 0:02:06.3]} 16. Nxg6 {[%clk 0:02:33.6]} 16... Rf5 {[%clk
0:02:03.3]} 17. Nxe7+ {[%clk 0:02:32.5]} 1-0

[Event "Late-Titled-Tuesday-Blitz-April-23-2024"]
[Site "Chess.com"]
[Date "2024.04.23"]
[Round "3"]
[White "Oleksandr_Bortnyk"]
[Black "GMAkobianSTL"]
[Result "1-0"]
[WhiteElo "3121"]
[BlackElo "2813"]
[TimeControl "180+1"]
[EndTime "14:24:58 PDT"]
[Termination "Oleksandr_Bortnyk won by resignation"]

1. e4 {[%clk 0:02:57.6]} 1... e6 {[%clk 0:03:00.2]} 2. Nf3 {[%clk 0:02:58.1]}
2... d5 {[%clk 0:03:00.1]} 3. e5 {[%clk 0:02:58.3]} 3... c5 {[%clk 0:02:59.9]}
4. d4 {[%clk 0:02:59]} 4... Nc6 {[%clk 0:02:59.8]} 5. Bd3 {[%clk 0:02:59.4]}
5... Qb6 {[%clk 0:02:57.3]} 6. O-O {[%clk 0:02:59.5]} 6... cxd4 {[%clk
0:02:57.2]} 7. Nbd2 {[%clk 0:02:59.4]} 7... Nge7 {[%clk 0:02:57]} 8. Nb3 {[%clk
0:02:59.7]} 8... Ng6 {[%clk 0:02:56.8]} 9. Re1 {[%clk 0:02:59.8]} 9... Be7
{[%clk 0:02:56.6]} 10. Nbxd4 {[%clk 0:02:59.5]} 10... Nxd4 {[%clk 0:02:56.2]}
11. Nxd4 {[%clk 0:02:59.8]} 11... O-O {[%clk 0:02:56.5]} 12. c3 {[%clk
0:02:59.8]} 12... Qc7 {[%clk 0:02:55.8]} 13. Nf3 {[%clk 0:02:58]} 13... a5
{[%clk 0:02:50.8]} 14. h4 {[%clk 0:02:56.5]} 14... Rd8 {[%clk 0:02:34.3]} 15. h5
{[%clk 0:02:55.8]} 15... Nf8 {[%clk 0:02:34.3]} 16. h6 {[%clk 0:02:53.2]} 16...
g6 {[%clk 0:02:34.5]} 17. Bg5 {[%clk 0:02:48.7]} 17... Bxg5 {[%clk 0:02:18.5]}
18. Nxg5 {[%clk 0:02:49.6]} 18... Bd7 {[%clk 0:02:18.6]} 19. Qf3 {[%clk
0:02:45.4]} 19... f5 {[%clk 0:01:42.2]} 20. exf6 {[%clk 0:02:46.3]} 20... Be8
{[%clk 0:01:41.8]} 21. f7+ {[%clk 0:02:46.4]} 21... Bxf7 {[%clk 0:01:41.8]} 22.
Qf6 {[%clk 0:02:47]} 22... Be8 {[%clk 0:01:41]} 23. Qxf8+ {[%clk 0:02:47.9]}
23... Kxf8 {[%clk 0:01:40.5]} 24. Nxe6+ {[%clk 0:02:48.8]} 1-0

[Event "Late-Titled-Tuesday-Blitz-April-23-2024"]
[Site "Chess.com"]
[Date "2024.04.23"]
[Round "3"]
[White "B_nn_t"]
[Black "GMG"]
[Result "1/2-1/2"]
[WhiteElo "2561"]
[BlackElo "2772"]
[TimeControl "180+1"]
[EndTime "14:25:33 PDT"]
[Termination "Game drawn by repetition"]

1. e4 {[%clk 0:03:00.9]} 1... c5 {[%clk 0:02:59.7]} 2. Nf3 {[%clk 0:03:00.8]}
2... Nc6 {[%clk 0:03:00.3]} 3. d4 {[%clk 0:03:00.6]} 3... cxd4 {[%clk
0:03:01.2]} 4. Nxd4 {[%clk 0:03:01.3]} 4... Nf6 {[%clk 0:03:01.9]} 5. Nc3 {[%clk
0:03:01.4]} 5... e5 {[%clk 0:03:02.6]} 6. Ndb5 {[%clk 0:03:01.6]} 6... d6 {[%clk
0:03:03.2]} 7. Bg5 {[%clk 0:03:02]} 7... a6 {[%clk 0:03:03.2]} 8. Na3 {[%clk
0:03:02.5]} 8... b5 {[%clk 0:03:03.8]} 9. Nab1 {[%clk 0:03:03.1]} 9... Be7
{[%clk 0:02:58.8]} 10. Bxf6 {[%clk 0:03:03.1]} 10... Bxf6 {[%clk 0:02:58.9]} 11.
a4 {[%clk 0:03:03.6]} 11... b4 {[%clk 0:02:56.9]} 12. Nd5 {[%clk 0:03:03.9]}
12... Bg5 {[%clk 0:02:25.3]} 13. Bc4 {[%clk 0:03:03.6]} 13... O-O {[%clk
0:02:15.9]} 14. O-O {[%clk 0:03:03.7]} 14... Kh8 {[%clk 0:02:08]} 15. c3 {[%clk
0:02:53.7]} 15... Rb8 {[%clk 0:02:00.5]} 16. Qd3 {[%clk 0:02:52.6]} 16... bxc3
{[%clk 0:01:57.7]} 17. Nbxc3 {[%clk 0:02:49.1]} 17... Rxb2 {[%clk 0:01:54]} 18.
Bxa6 {[%clk 0:02:48.5]} 18... Rd2 {[%clk 0:01:38.3]} 19. Qc4 {[%clk 0:02:39.6]}
19... Bd7 {[%clk 0:01:37.4]} 20. Bb5 {[%clk 0:02:34.7]} 20... Rd4 {[%clk
0:01:25.7]} 21. Qe2 {[%clk 0:02:26.5]} 21... Rd2 {[%clk 0:01:24.2]} 22. Qc4
{[%clk 0:02:26.1]} 22... Rd4 {[%clk 0:01:22.5]} 23. Qe2 {[%clk 0:02:26.2]} 23...
Rd2 {[%clk 0:01:22.8]} 24. Qc4 {[%clk 0:02:26.5]} 1/2-1/2

[Event "Late-Titled-Tuesday-Blitz-April-23-2024"]
[Site "Chess.com"]
[Date "2024.04.23"]
[Round "3"]
[White "GoltsevDmitry2000"]
[Black "ChristopherYoo"]
[Result "1/2-1/2"]
[WhiteElo "2760"]
[BlackElo "2988"]
[TimeControl "180+1"]
[EndTime "14:26:18 PDT"]
[Termination "Game drawn by repetition"]

1. e4 {[%clk 0:03:00.3]} 1... c5 {[%clk 0:02:57.5]} 2. Nf3 {[%clk 0:03:00]} 2...
d6 {[%clk 0:02:56.9]} 3. d4 {[%clk 0:03:00.7]} 3... cxd4 {[%clk 0:02:57.5]} 4.
Nxd4 {[%clk 0:03:01.2]} 4... Nf6 {[%clk 0:02:57.8]} 5. Nc3 {[%clk 0:03:01.8]}
5... Nc6 {[%clk 0:02:55.6]} 6. Be2 {[%clk 0:03:02]} 6... e5 {[%clk 0:02:48.6]}
7. Nf5 {[%clk 0:02:59.7]} 7... Bxf5 {[%clk 0:02:44.8]} 8. exf5 {[%clk
0:03:00.6]} 8... d5 {[%clk 0:02:41]} 9. Bg5 {[%clk 0:03:00.1]} 9... Bb4 {[%clk
0:02:40.7]} 10. O-O {[%clk 0:02:58.5]} 10... Bxc3 {[%clk 0:02:40.4]} 11. bxc3
{[%clk 0:02:59.4]} 11... O-O {[%clk 0:02:33.9]} 12. Bxf6 {[%clk 0:02:59.3]}
12... Qxf6 {[%clk 0:02:33.7]} 13. Qxd5 {[%clk 0:02:59]} 13... Qxf5 {[%clk
0:02:33.6]} 14. Bd3 {[%clk 0:02:58]} 14... Qf6 {[%clk 0:02:33.1]} 15. Rab1
{[%clk 0:02:54.9]} 15... b6 {[%clk 0:02:32.4]} 16. Rfd1 {[%clk 0:02:43.4]} 16...
Rad8 {[%clk 0:02:27.6]} 17. Qe4 {[%clk 0:02:42.7]} 17... g6 {[%clk 0:02:27.4]}
18. Bb5 {[%clk 0:02:37]} 18... Na5 {[%clk 0:02:26]} 19. a4 {[%clk 0:02:21.3]}
19... Rxd1+ {[%clk 0:02:18]} 20. Rxd1 {[%clk 0:02:21]} 20... Rd8 {[%clk
0:02:18.6]} 21. Rxd8+ {[%clk 0:02:17.2]} 21... Qxd8 {[%clk 0:02:19.5]} 22. Qxe5
{[%clk 0:02:16.8]} 22... Nb7 {[%clk 0:02:14.8]} 23. g3 {[%clk 0:02:00.1]} 23...
Nc5 {[%clk 0:02:07.3]} 24. a5 {[%clk 0:01:47.1]} 24... Qd1+ {[%clk 0:02:04.2]}
25. Kg2 {[%clk 0:01:43.7]} 25... Qxc2 {[%clk 0:02:04.7]} 26. Qe8+ {[%clk
0:01:40.3]} 26... Kg7 {[%clk 0:02:04.4]} 27. Qe5+ {[%clk 0:01:40.9]} 27... Kg8
{[%clk 0:01:57.7]} 28. Qe8+ {[%clk 0:01:40.9]} 28... Kg7 {[%clk 0:01:58.2]} 29.
Qe5+ {[%clk 0:01:41.6]} 29... Kh6 {[%clk 0:01:53.7]} 30. Qf4+ {[%clk 0:01:27.5]}
30... Kg7 {[%clk 0:01:51.1]} 31. Qe5+ {[%clk 0:01:27.6]} 1/2-1/2

[Event "Late-Titled-Tuesday-Blitz-April-23-2024"]
[Site "Chess.com"]
[Date "2024.04.23"]
[Round "3"]
[White "DrVelja"]
[Black "Balla_Tamas"]
[Result "1-0"]
[WhiteElo "2975"]
[BlackElo "2533"]
[TimeControl "180+1"]
[EndTime "14:26:36 PDT"]
[Termination "DrVelja won by resignation"]

1. d4 {[%clk 0:03:00.9]} 1... d5 {[%clk 0:02:59.6]} 2. c4 {[%clk 0:02:59.7]}
2... e6 {[%clk 0:02:59.9]} 3. Nc3 {[%clk 0:02:58.4]} 3... c5 {[%clk 0:03:00.1]}
4. e3 {[%clk 0:02:50]} 4... Nc6 {[%clk 0:02:59.8]} 5. Nf3 {[%clk 0:02:49.1]}
5... Nf6 {[%clk 0:02:59.5]} 6. a3 {[%clk 0:02:49.2]} 6... a6 {[%clk 0:02:59.1]}
7. dxc5 {[%clk 0:02:48.6]} 7... Bxc5 {[%clk 0:02:59.7]} 8. b4 {[%clk 0:02:49.3]}
8... Ba7 {[%clk 0:02:59.7]} 9. Ra2 {[%clk 0:02:47.7]} 9... Qe7 {[%clk
0:02:45.8]} 10. Rd2 {[%clk 0:02:37.8]} 10... dxc4 {[%clk 0:02:43.4]} 11. Bxc4
{[%clk 0:02:38.7]} 11... b5 {[%clk 0:02:41.3]} 12. Bd3 {[%clk 0:02:35.8]} 12...
O-O {[%clk 0:02:40.6]} 13. Bb2 {[%clk 0:02:34.8]} 13... Bb7 {[%clk 0:02:39.1]}
14. Ne4 {[%clk 0:02:27.1]} 14... Nxe4 {[%clk 0:02:33.6]} 15. Bxe4 {[%clk
0:02:28]} 15... Rad8 {[%clk 0:02:33]} 16. Rxd8 {[%clk 0:02:16.9]} 16... Rxd8
{[%clk 0:02:32.2]} 17. Qc2 {[%clk 0:02:16.7]} 17... f5 {[%clk 0:01:58.3]} 18.
Bxc6 {[%clk 0:02:05]} 18... Rc8 {[%clk 0:01:57.6]} 19. Ne5 {[%clk 0:02:05.5]}
19... Bxc6 {[%clk 0:01:49.9]} 20. Nxc6 {[%clk 0:02:04.1]} 20... Qc7 {[%clk
0:01:26.1]} 21. Qc3 {[%clk 0:02:04.6]} 21... e5 {[%clk 0:01:10.3]} 22. Qxe5
{[%clk 0:01:57.7]} 22... Qxe5 {[%clk 0:01:04.7]} 23. Nxe5 {[%clk 0:01:58.6]}
23... Rc2 {[%clk 0:01:04.8]} 24. Nd3 {[%clk 0:01:59.3]} 24... f4 {[%clk
0:01:02.5]} 25. Kd1 {[%clk 0:01:58.4]} 1-0

[Event "Late-Titled-Tuesday-Blitz-April-23-2024"]
[Site "Chess.com"]
[Date "2024.04.23"]
[Round "3"]
[White "Oleg_Papayan"]
[Black "Arteler"]
[Result "1-0"]
[WhiteElo "2650"]
[BlackElo "2307"]
[TimeControl "180+1"]
[EndTime "14:26:43 PDT"]
[Termination "Oleg_Papayan won by resignation"]

1. e4 {[%clk 0:03:00.9]} 1... c5 {[%clk 0:02:57]} 2. d4 {[%clk 0:03:01.5]} 2...
cxd4 {[%clk 0:02:54.5]} 3. Qxd4 {[%clk 0:03:02.4]} 3... Nc6 {[%clk 0:02:54.6]}
4. Qd3 {[%clk 0:03:03.2]} 4... Nf6 {[%clk 0:02:50.8]} 5. Nc3 {[%clk 0:03:03.7]}
5... g6 {[%clk 0:02:50.5]} 6. Nf3 {[%clk 0:03:04.3]} 6... Bg7 {[%clk 0:02:49.4]}
7. Be2 {[%clk 0:03:04.9]} 7... O-O {[%clk 0:02:49.2]} 8. O-O {[%clk 0:03:05.5]}
8... a6 {[%clk 0:02:40.3]} 9. Nd5 {[%clk 0:03:05.3]} 9... b5 {[%clk 0:02:25.3]}
10. c3 {[%clk 0:03:00.5]} 10... e6 {[%clk 0:02:19.6]} 11. Nxf6+ {[%clk
0:02:58.3]} 11... Bxf6 {[%clk 0:02:16.6]} 12. Bf4 {[%clk 0:02:46.1]} 12... Bb7
{[%clk 0:02:04.8]} 13. Rad1 {[%clk 0:02:40.8]} 13... Bc8 {[%clk 0:01:45.7]} 14.
Bd6 {[%clk 0:02:13.2]} 14... Re8 {[%clk 0:01:42.2]} 15. e5 {[%clk 0:02:08.3]}
15... Bg7 {[%clk 0:01:38.1]} 16. Rfe1 {[%clk 0:02:00.1]} 16... Bf8 {[%clk
0:01:37.9]} 17. Nd4 {[%clk 0:01:32]} 17... Bxd6 {[%clk 0:01:26.8]} 18. Nxc6
{[%clk 0:01:29.3]} 18... dxc6 {[%clk 0:01:26.2]} 19. Qxd6 {[%clk 0:01:29.4]}
19... Qxd6 {[%clk 0:01:25.4]} 20. Rxd6 {[%clk 0:01:29.4]} 20... Rd8 {[%clk
0:01:25.7]} 21. Rxd8+ {[%clk 0:01:29]} 21... Kg7 {[%clk 0:01:21.2]} 22. Bf3
{[%clk 0:01:27.4]} 22... Bb7 {[%clk 0:01:16.1]} 23. Rxa8 {[%clk 0:01:26.8]}
23... Bxa8 {[%clk 0:01:16.5]} 24. Rd1 {[%clk 0:01:27.5]} 1-0

[Event "Late-Titled-Tuesday-Blitz-April-23-2024"]
[Site "Chess.com"]
[Date "2024.04.23"]
[Round "3"]
[White "expii"]
[Black "David_ATM"]
[Result "0-1"]
[WhiteElo "2183"]
[BlackElo "2458"]
[TimeControl "180+1"]
[EndTime "14:26:44 PDT"]
[Termination "David_ATM won by resignation"]

1. e4 {[%clk 0:02:58.4]} 1... e5 {[%clk 0:02:59.9]} 2. Nf3 {[%clk 0:02:57.6]}
2... Nc6 {[%clk 0:03:00.5]} 3. Bb5 {[%clk 0:02:57.4]} 3... a6 {[%clk 0:03:00.9]}
4. Ba4 {[%clk 0:02:57]} 4... Nf6 {[%clk 0:03:01.4]} 5. d4 {[%clk 0:02:55]} 5...
d6 {[%clk 0:02:57.2]} 6. dxe5 {[%clk 0:02:46.7]} 6... Nxe4 {[%clk 0:02:46.8]} 7.
O-O {[%clk 0:02:23.6]} 7... Nc5 {[%clk 0:02:38.2]} 8. Bxc6+ {[%clk 0:02:12.3]}
8... bxc6 {[%clk 0:02:39.1]} 9. exd6 {[%clk 0:01:59.5]} 9... cxd6 {[%clk
0:02:40]} 10. Re1+ {[%clk 0:01:57.6]} 10... Be7 {[%clk 0:02:36.7]} 11. Bg5
{[%clk 0:01:43.8]} 11... Ra7 {[%clk 0:02:36.9]} 12. Qe2 {[%clk 0:01:13.5]} 12...
Ne6 {[%clk 0:02:32.3]} 13. Be3 {[%clk 0:01:11.9]} 13... Rd7 {[%clk 0:02:26.7]}
14. Nc3 {[%clk 0:01:10.2]} 14... O-O {[%clk 0:02:22.9]} 15. Nd4 {[%clk
0:01:09.6]} 15... Nxd4 {[%clk 0:02:16.7]} 16. Bxd4 {[%clk 0:01:10.5]} 16... Bf6
{[%clk 0:02:14.7]} 17. Bxf6 {[%clk 0:01:05.2]} 17... Qxf6 {[%clk 0:02:15.6]} 18.
Rad1 {[%clk 0:00:47.1]} 18... h6 {[%clk 0:02:13.8]} 19. Ne4 {[%clk 0:00:46.6]}
19... Qg6 {[%clk 0:02:11.6]} 20. Qc4 {[%clk 0:00:40.9]} 20... d5 {[%clk
0:02:07.2]} 0-1

[Event "Late-Titled-Tuesday-Blitz-April-23-2024"]
[Site "Chess.com"]
[Date "2024.04.23"]
[Round "3"]
[White "DonJuanEGenaro"]
[Black "A4RookA3"]
[Result "0-1"]
[WhiteElo "2025"]
[BlackElo "2367"]
[TimeControl "180+1"]
[EndTime "14:26:45 PDT"]
[Termination "A4RookA3 won by resignation"]

1. e4 {[%clk 0:02:57.9]} 1... Nf6 {[%clk 0:03:00.9]} 2. Nc3 {[%clk 0:02:56.7]}
2... e6 {[%clk 0:03:00.4]} 3. d3 {[%clk 0:02:55.3]} 3... d5 {[%clk 0:02:59.6]}
4. Nf3 {[%clk 0:02:45.3]} 4... Bb4 {[%clk 0:02:47.3]} 5. e5 {[%clk 0:02:40.1]}
5... Nfd7 {[%clk 0:02:45.2]} 6. a3 {[%clk 0:02:36.4]} 6... Be7 {[%clk
0:02:42.2]} 7. Bf4 {[%clk 0:02:29.4]} 7... c5 {[%clk 0:02:40.1]} 8. d4 {[%clk
0:02:25.8]} 8... Nc6 {[%clk 0:02:37.3]} 9. dxc5 {[%clk 0:02:11.6]} 9... f6
{[%clk 0:02:13.6]} 10. exf6 {[%clk 0:01:45.6]} 10... Bxf6 {[%clk 0:02:14.5]} 11.
Bd6 {[%clk 0:01:35.6]} 11... Bxc3+ {[%clk 0:01:45.6]} 12. bxc3 {[%clk
0:01:33.4]} 12... Qa5 {[%clk 0:01:46.5]} 13. Qd3 {[%clk 0:00:56.2]} 13... Nxc5
{[%clk 0:01:40.1]} 14. Qd4 {[%clk 0:00:45.9]} 14... Nxd4 {[%clk 0:01:35.6]} 0-1

[Event "Late-Titled-Tuesday-Blitz-April-23-2024"]
[Site "Chess.com"]
[Date "2024.04.23"]
[Round "3"]
[White "th3d4rkness"]
[Black "JG-17"]
[Result "0-1"]
[WhiteElo "2142"]
[BlackElo "2545"]
[TimeControl "180+1"]
[EndTime "14:26:54 PDT"]
[Termination "JG-17 won by resignation"]

1. e4 {[%clk 0:03:00.9]} 1... c5 {[%clk 0:02:59.7]} 2. Nf3 {[%clk 0:03:00.3]}
2... d6 {[%clk 0:03:00.3]} 3. Bb5+ {[%clk 0:02:56.6]} 3... Bd7 {[%clk
0:02:59.5]} 4. Bxd7+ {[%clk 0:02:55.5]} 4... Qxd7 {[%clk 0:03:00.4]} 5. c4
{[%clk 0:02:55.4]} 5... Nf6 {[%clk 0:02:59.1]} 6. Nc3 {[%clk 0:02:55]} 6... Nc6
{[%clk 0:02:59.2]} 7. d4 {[%clk 0:02:49.8]} 7... cxd4 {[%clk 0:03:00.1]} 8. Nxd4
{[%clk 0:02:49.7]} 8... g6 {[%clk 0:03:00.8]} 9. O-O {[%clk 0:02:42.8]} 9... Bg7
{[%clk 0:03:01.1]} 10. Nc2 {[%clk 0:02:03]} 10... O-O {[%clk 0:02:59.4]} 11. Nd5
{[%clk 0:01:58.2]} 11... Nxe4 {[%clk 0:02:55.5]} 12. Qe2 {[%clk 0:01:46.6]}
12... Nf6 {[%clk 0:02:52.2]} 13. Bg5 {[%clk 0:01:37]} 13... Qf5 {[%clk
0:02:44.8]} 14. Bxf6 {[%clk 0:01:14.8]} 14... Bxf6 {[%clk 0:02:43.9]} 15. Nce3
{[%clk 0:01:09.2]} 15... Nd4 {[%clk 0:02:35.3]} 16. Qd1 {[%clk 0:00:59.1]} 16...
Qe6 {[%clk 0:02:12.6]} 17. Nxf6+ {[%clk 0:00:58.9]} 17... Qxf6 {[%clk
0:02:12.4]} 18. Nd5 {[%clk 0:00:59.2]} 18... Qh4 {[%clk 0:02:04.4]} 19. g3
{[%clk 0:00:56.8]} 19... Qe4 {[%clk 0:02:03.8]} 20. f3 {[%clk 0:00:47.8]} 20...
Ne2+ {[%clk 0:01:56.5]} 21. Kf2 {[%clk 0:00:46.6]} 21... Qxc4 {[%clk 0:01:52.3]}
22. Nxe7+ {[%clk 0:00:44.8]} 22... Kh8 {[%clk 0:01:51.6]} 23. Qxe2 {[%clk
0:00:44.8]} 23... Qxe2+ {[%clk 0:01:49.7]} 24. Kxe2 {[%clk 0:00:42.6]} 24...
Rfe8 {[%clk 0:01:50.6]} 0-1